bitfinex-derivatives/quotes_BTCF0:USTF0_20241020
["timestamp","ask_amount","ask_price","bid_price","bid_amount"]
[1729423558691,0.0357626,68479.0,68474.0,0.0313]
[1729423558886,0.0357626,68478.0,68474.0,0.0313]
[1729423559191,0.0357626,68477.0,68474.0,0.0313]
[1729423559392,0.28561354,68483.0,68474.0,0.0313]
[1729423559587,0.03576297,68482.0,68474.0,0.0313]
[1729423559788,0.03576297,68481.0,68474.0,0.0313]
[1729423559990,0.03576297,68480.0,68474.0,0.0313]
[1729423560181,0.03576297,68479.0,68474.0,0.0313]
[1729423560402,0.03576297,68478.0,68474.0,0.0313]
[1729423560693,0.03576297,68477.0,68474.0,0.0313]
[1729423560896,0.28561354,68483.0,68474.0,0.0313]
[1729423561094,0.0357627,68482.0,68474.0,0.0313]
[1729423561294,0.0357627,68481.0,68474.0,0.0313]
[1729423561500,0.0357627,68480.0,68474.0,0.0313]
[1729423561701,0.0357627,68479.0,68474.0,0.0313]
[1729423561997,0.0357627,68478.0,68474.0,0.0313]
[1729423562295,0.0357627,68477.0,68474.0,0.0313]
[1729423562499,0.28561354,68483.0,68474.0,0.0313]
[1729423562796,0.03576262,68482.0,68474.0,0.0313]
[1729423562998,0.28561354,68483.0,68474.0,0.0313]
[1729423562999,0.03576262,68481.0,68474.0,0.0313]
[1729423563290,0.03576262,68480.0,68474.0,0.0313]
[1729423563493,0.28561354,68483.0,68474.0,0.0313]
[1729423563494,0.03576262,68479.0,68474.0,0.0313]
[1729423563793,0.03576262,68478.0,68474.0,0.0313]
[1729423563987,0.03576262,68477.0,68474.0,0.0313]
[1729423564184,0.28561354,68483.0,68474.0,0.0313]
[1729423564386,0.03576301,68482.0,68474.0,0.0313]
[1729423564582,0.03576301,68481.0,68474.0,0.0313]
[1729423564787,0.03576301,68480.0,68474.0,0.0313]
[1729423564990,0.03576289,68479.0,68474.0,0.0313]
[1729423565190,0.03576289,68478.0,68474.0,0.0313]
[1729423565393,0.28561354,68483.0,68474.0,0.0313]
[1729423565600,0.03576285,68482.0,68474.0,0.0313]
[1729423565787,0.28561354,68483.0,68480.0,0.08761492]
[1729423565988,0.28561354,68483.0,68481.0,0.10844273]
[1729423566187,0.28561354,68483.0,68482.0,0.10844273]
[1729423569900,0.28561354,68483.0,68482.0,0.10842259]
[1729423572705,0.28561354,68483.0,68474.0,0.0313]
[1729423572706,0.32137553,68483.0,68474.0,0.0313]
[1729423572902,0.03576199,68482.0,68474.0,0.0313]
[1729423573204,0.03576199,68481.0,68474.0,0.0313]
[1729423573410,0.03576199,68480.0,68474.0,0.0313]
[1729423573609,0.03576199,68479.0,68474.0,0.0313]
[1729423573810,0.28561354,68483.0,68474.0,0.0313]
[1729423574011,0.03576198,68482.0,68474.0,0.0313]
[1729423574212,0.03576198,68481.0,68474.0,0.0313]
[1729423574512,0.03576198,68480.0,68474.0,0.0313]
[1729423574714,0.03576198,68479.0,68474.0,0.0313]
[1729423574911,0.0357623,68478.0,68474.0,0.0313]
[1729423575111,0.0357623,68477.0,68474.0,0.0313]
[1729423575316,0.28561354,68483.0,68474.0,0.0313]
[1729423576223,0.1286,68485.0,68479.0,0.3608]
[1729423579029,0.1286,68485.0,68480.0,0.0317]
[1729423579421,0.0408,68485.0,68480.0,0.0317]
[1729423580022,0.03576122,68484.0,68480.0,0.0317]
[1729423580226,0.03576122,68483.0,68480.0,0.0317]
[1729423580431,0.0408,68485.0,68480.0,0.0317]
[1729423580432,0.03576122,68482.0,68480.0,0.0317]
[1729423580624,0.03576122,68481.0,68480.0,0.0317]
[1729423580827,0.0408,68485.0,68480.0,0.13997554]
[1729423581025,0.0408,68485.0,68482.0,0.08758912]
[1729423581226,0.0408,68485.0,68483.0,0.10827554]
[1729423581422,0.0408,68485.0,68484.0,0.10827554]
[1729423584624,0.0408,68485.0,68484.0,0.10828678]
[1729423587937,0.0408,68485.0,68480.0,0.0317]
[1729423588138,0.08058503,68484.0,68480.0,0.0317]
[1729423593840,0.08058503,68484.0,68474.0,0.0313]
[1729423594545,0.08058742,68483.0,68474.0,0.0313]
[1729423594742,0.08058742,68482.0,68474.0,0.0313]
[1729423594945,0.08058742,68481.0,68474.0,0.0313]
[1729423595245,0.08058742,68480.0,68474.0,0.0313]
[1729423595434,0.0408,68485.0,68474.0,0.0313]
[1729423595435,0.08058721,68479.0,68474.0,0.0313]
[1729423595635,0.03576208,68478.0,68474.0,0.0313]
[1729423595841,1.5,68478.0,68475.0,0.23748404]
[1729423596144,1.5,68478.0,68476.0,0.23748404]
[1729423596336,1.5,68478.0,68477.0,0.23748404]
[1729423599446,1.5,68478.0,68477.0,0.23739035]
[1729423600937,1.52605013,68478.0,68477.0,0.23739035]
[1729423602840,0.0408,68485.0,68477.0,0.38731662]
[1729423603147,0.0408,68485.0,68479.0,0.10220054]
[1729423603348,0.0408,68485.0,68480.0,0.23739035]
[1729423603538,0.0408,68485.0,68481.0,0.23739035]
[1729423603733,0.0408,68485.0,68474.0,0.0313]
[1729423603734,0.0408,68485.0,68482.0,0.23739035]
[1729423603944,1.5,68484.0,68483.0,0.23739035]
[1729423605644,1.5,68484.0,68483.0,0.23635013]
[1729423610934,1.53576225,68484.0,68474.0,0.0313]
[1729423611139,0.03576225,68483.0,68474.0,0.0313]
[1729423611339,0.06680015,68485.0,68474.0,0.0313]
[1729423611538,0.03576164,68484.0,68474.0,0.0313]
[1729423611738,1.53576164,68483.0,68474.0,0.0313]
[1729423612044,1.5,68483.0,68474.0,0.0313]
[1729423612439,0.03576152,68482.0,68474.0,0.0313]
[1729423612638,1.5,68483.0,68474.0,0.0313]
[1729423614245,0.03576174,68482.0,68474.0,0.0313]
[1729423614552,1.5,68483.0,68474.0,0.3921]
[1729423614743,0.03576169,68482.0,68474.0,0.3921]
[1729423614947,1.5,68483.0,68474.0,0.3921]
[1729423615152,0.03576179,68482.0,68474.0,0.3921]
[1729423615451,1.5,68483.0,68474.0,0.3921]
[1729423616849,0.03576166,68482.0,68474.0,0.3921]
[1729423617050,1.5,68483.0,68474.0,0.3921]
[1729423617247,0.03576166,68482.0,68474.0,0.3921]
[1729423617449,1.5,68483.0,68474.0,0.3921]
[1729423618044,1.5,68483.0,68480.0,0.10220054]
[1729423618238,1.5,68483.0,68481.0,0.33857393]
[1729423618445,1.5,68483.0,68482.0,0.23637339]
[1729423619241,1.5,68483.0,68482.0,0.23626081]
[1729423622650,1.5,68483.0,68482.0,0.23632655]
[1729423625951,1.5,68483.0,68474.0,0.39402]
[1729423625952,0.03576119,68483.0,68474.0,0.39402]
[1729423626157,0.03576119,68482.0,68474.0,0.3921]
[1729423626448,0.03576119,68481.0,68477.0,0.3608]
[1729423626653,0.03576119,68480.0,68477.0,0.3608]
[1729423626850,1.5,68479.0,68477.0,0.3608]
[1729423630356,1.5,68479.0,68474.0,0.05769866]
[1729423630561,1.5,68479.0,68478.0,0.3608]
[1729423632159,1.5,68479.0,68474.0,0.05769866]
[1729423632561,1.5,68479.0,68478.0,0.3608]
[1729423633060,0.1209,68489.0,68478.0,0.91470129]
[1729423633360,0.1209,68489.0,68486.0,0.10218913]
[1729423633661,0.1209,68489.0,68487.0,0.23568402]
[1729423633862,0.1209,68489.0,68488.0,0.23568402]
[1729423634163,1.6209,68489.0,68488.0,0.23568402]
[1729423637053,1.64782961,68489.0,68488.0,0.23568402]
[1729423637564,1.64782961,68489.0,68488.0,0.23403154]
[1729423640961,1.64782961,68489.0,68487.0,0.0437919]
[1729423642270,1.64782961,68489.0,68488.0,0.0437919]
[1729423642458,1.64782961,68489.0,68487.0,0.0437919]
[1729423644259,1.64782961,68489.0,68488.0,0.0437919]
[1729423647973,1.72841282,68489.0,68479.0,0.3608]
[1729423648168,0.08058321,68488.0,68479.0,0.3608]
[1729423648363,0.08058321,68487.0,68479.0,0.3608]
[1729423648563,0.08058321,68486.0,68479.0,0.3608]
[1729423648760,0.08058321,68485.0,68479.0,0.3608]
[1729423648964,0.08058321,68484.0,68479.0,0.3608]
[1729423649171,0.03576021,68483.0,68479.0,0.3608]
[1729423649368,0.03576021,68482.0,68479.0,0.3608]
[1729423649572,1.61472961,68489.0,68479.0,0.3608]
[1729423649573,0.03576021,68481.0,68479.0,0.3608]
[1729423649769,0.03576021,68480.0,68479.0,0.3608]
[1729423655974,1.61472961,68489.0,68479.0,0.594795]
[1729423656181,1.61472961,68489.0,68483.0,0.08756925]
[1729423656383,1.61472961,68489.0,68484.0,0.10675141]
[1729423656682,1.61472961,68489.0,68485.0,0.10675141]
[1729423656980,1.61472961,68489.0,68483.0,0.08756925]
[1729423656981,1.61472961,68489.0,68486.0,0.10675141]
[1729423657170,1.61472961,68489.0,68483.0,0.08756925]
[1729423657171,1.61472961,68489.0,68487.0,0.10675141]
[1729423657473,1.61472961,68489.0,68488.0,0.10675141]
[1729423661183,1.61472961,68489.0,68488.0,0.17972717]
[1729423661481,1.61472961,68489.0,68488.0,0.10675141]
[1729423661881,1.61472961,68489.0,68488.0,0.1797267]
[1729423662185,1.61472961,68489.0,68488.0,0.10675141]
[1729423663067,1.69531227,68489.0,68479.0,0.3608]
[1729423663274,0.03575997,68488.0,68479.0,0.38650031]
[1729423663479,0.03575997,68487.0,68479.0,0.38650031]
[1729423663681,0.03575997,68486.0,68479.0,0.38650031]
[1729423663976,0.03575997,68485.0,68479.0,0.3608]
[1729423664281,0.03575997,68484.0,68479.0,0.3608]
[1729423664480,0.03575997,68483.0,68479.0,0.3608]
[1729423664684,0.03575997,68482.0,68479.0,0.3608]
[1729423664983,1.61472961,68489.0,68479.0,0.3608]
[1729423665188,0.03575966,68488.0,68479.0,0.3608]
[1729423665371,0.03575966,68487.0,68479.0,0.3608]
[1729423665573,0.03575966,68486.0,68479.0,0.3608]
[1729423665788,1.61472961,68489.0,68479.0,0.3608]
[1729423665973,0.03575983,68488.0,68479.0,0.3608]
[1729423666173,0.03575983,68487.0,68479.0,0.3608]
[1729423666374,0.03575983,68486.0,68479.0,0.3608]
[1729423666575,0.03575983,68485.0,68479.0,0.3608]
[1729423666774,1.61472961,68489.0,68479.0,0.3608]
[1729423666775,0.03575983,68484.0,68479.0,0.3608]
[1729423666976,0.03576003,68483.0,68479.0,0.3608]
[1729423667270,0.03576003,68482.0,68479.0,0.3608]
[1729423667481,0.03576003,68481.0,68479.0,0.3608]
[1729423667687,1.61472961,68489.0,68479.0,0.3608]
[1729423667986,0.08058224,68488.0,68479.0,0.3608]
[1729423668186,0.03575978,68487.0,68479.0,0.3608]
[1729423668486,0.03575978,68486.0,68479.0,0.3608]
[1729423668680,0.03575978,68485.0,68479.0,0.3608]
[1729423668886,0.03575978,68484.0,68479.0,0.3608]
[1729423669191,0.03575978,68483.0,68479.0,0.3608]
[1729423669385,0.03575978,68482.0,68479.0,0.3608]
[1729423669591,1.61472961,68489.0,68479.0,0.3608]
[1729423669773,0.03575954,68488.0,68479.0,0.3608]
[1729423669979,0.03575954,68487.0,68479.0,0.3608]
[1729423670179,0.03575954,68486.0,68479.0,0.3608]
[1729423670379,0.03575954,68485.0,68479.0,0.3608]
[1729423670581,0.03575954,68484.0,68479.0,0.3608]
[1729423670781,1.61472961,68489.0,68479.0,0.3608]
[1729423670782,0.03575954,68483.0,68479.0,0.3608]
[1729423670982,1.61472961,68489.0,68480.0,0.10678334]
[1729423671181,1.61472961,68489.0,68484.0,0.08757869]
[1729423671382,1.61472961,68489.0,68485.0,0.10678334]
[1729423671583,1.61472961,68489.0,68486.0,0.10678334]
[1729423671782,1.61472961,68489.0,68487.0,0.10678334]
[1729423671982,1.61472961,68489.0,68488.0,0.10677466]
[1729423676992,1.61472961,68489.0,68488.0,0.10680474]
[1729423678085,1.69531192,68489.0,68481.0,0.3608]
[1729423678291,0.03575981,68488.0,68481.0,0.3608]
[1729423678493,0.03575981,68487.0,68481.0,0.3608]
[1729423678693,0.03575981,68486.0,68481.0,0.3608]
[1729423678893,0.03575981,68485.0,68481.0,0.3608]
[1729423679193,0.03575981,68484.0,68481.0,0.3608]
[1729423679394,0.03575981,68483.0,68481.0,0.3608]
[1729423679703,0.03575981,68482.0,68481.0,0.3608]
[1729423679902,1.61472961,68489.0,68481.0,0.3608]
[1729423679903,0.03575981,68488.0,68481.0,0.3608]
[1729423680097,0.03575981,68487.0,68481.0,0.3608]
[1729423680304,0.03575981,68486.0,68481.0,0.3608]
[1729423680603,0.03575981,68485.0,68481.0,0.3608]
[1729423680803,0.03575955,68484.0,68481.0,0.3608]
[1729423681003,0.03575955,68483.0,68481.0,0.3608]
[1729423681197,0.03575955,68482.0,68481.0,0.3608]
[1729423685124,1.52692961,68489.0,68481.0,0.59472106]
[1729423685322,1.52692961,68489.0,68485.0,0.08758217]
[1729423685617,1.52692961,68489.0,68486.0,0.10671818]
[1729423685823,1.52692961,68489.0,68487.0,0.10671818]
[1729423686015,1.52692961,68489.0,68488.0,0.10671818]
[1729423700234,1.60751106,68489.0,68481.0,0.3608]
[1729423700447,0.08058145,68488.0,68481.0,0.3608]
[1729423700645,0.03575943,68487.0,68481.0,0.3608]
[1729423700833,0.03575943,68486.0,68482.0,0.0639]
[1729423701141,0.03575943,68485.0,68482.0,0.0639]
[1729423701443,0.03575943,68484.0,68482.0,0.0639]
[1729423701644,0.03575943,68483.0,68482.0,0.0639]
[1729423708139,0.3608,68493.0,68482.0,0.0639]
[1729423708442,0.3608,68493.0,68489.0,0.04378304]
[1729423708846,1.5,68492.0,68490.0,0.04378304]
[1729423710046,1.5,68492.0,68486.0,0.05837738]
[1729423710047,1.5,68492.0,68489.0,0.04378304]
[1729423710937,1.5,68492.0,68490.0,0.04378304]
[1729423711244,1.5,68492.0,68489.0,0.04378304]
[1729423711543,1.5,68492.0,68490.0,0.04378304]
[1729423711750,1.5,68492.0,68489.0,0.04378304]
[1729423712043,1.5,68492.0,68490.0,0.04378304]
[1729423712439,1.5,68492.0,68489.0,0.04378304]
[1729423712846,1.5,68492.0,68490.0,0.04378304]
[1729423713448,1.5,68492.0,68489.0,0.04378304]
[1729423714053,1.5,68492.0,68490.0,0.04378304]
[1729423714340,1.5,68492.0,68486.0,0.05837738]
[1729423714341,1.5,68492.0,68489.0,0.04378304]
[1729423715137,0.13295607,68491.0,68482.0,0.0639]
[1729423715338,0.08058172,68490.0,68482.0,0.0639]
[1729423715544,0.08058172,68489.0,68482.0,0.0639]
[1729423715851,0.08058172,68488.0,68482.0,0.0639]
[1729423716049,0.13295607,68488.0,68482.0,0.0639]
[1729423716354,0.08058172,68487.0,68482.0,0.0639]
[1729423716546,0.08058172,68486.0,68482.0,0.0639]
[1729423716741,0.05237435,68488.0,68482.0,0.0639]
[1729423716742,0.08058172,68485.0,68482.0,0.0639]
[1729423716943,0.08058172,68484.0,68482.0,0.0639]
[1729423717249,0.08058172,68483.0,68482.0,0.0639]
[1729423717444,0.13295607,68488.0,68482.0,0.0639]
[1729423717747,0.08058172,68487.0,68482.0,0.0639]
[1729423717956,0.08058172,68486.0,68482.0,0.0639]
[1729423718249,0.08058172,68485.0,68482.0,0.0639]
[1729423718452,0.08058172,68484.0,68482.0,0.0639]
[1729423718651,0.08058172,68483.0,68482.0,0.0639]
[1729423719643,0.08058169,68483.0,68482.0,0.0639]
[1729423723251,1.5,68489.0,68482.0,0.29784998]
[1729423723447,1.5,68489.0,68484.0,0.0875654]
[1729423723756,1.5,68489.0,68485.0,0.19429627]
[1729423724056,1.5,68489.0,68486.0,0.10673087]
[1729423724256,1.5,68489.0,68487.0,0.10673087]
[1729423724449,1.5,68489.0,68484.0,0.0875654]
[1729423724450,1.5,68489.0,68488.0,0.10673087]
[1729423726057,1.5,68489.0,68488.0,0.10675913]
[1729423730757,1.5,68489.0,68488.0,0.07297155]
[1729423735955,1.5,68489.0,68488.0,0.17975752]
[1729423736153,1.5,68489.0,68488.0,0.10678597]
[1729423738157,1.5357599,68489.0,68479.0,0.3608]
[1729423738467,0.0357599,68488.0,68479.0,0.3608]
[1729423740360,0.08058237,68488.0,68479.0,0.3608]
[1729423740672,0.0357599,68487.0,68479.0,0.3608]
[1729423740859,0.0357599,68486.0,68479.0,0.3608]
[1729423741061,0.0357599,68485.0,68479.0,0.3608]
[1729423741365,0.0357599,68484.0,68479.0,0.3608]
[1729423741562,0.0357599,68483.0,68479.0,0.3608]
[1729423741763,0.0357599,68482.0,68479.0,0.3608]
[1729423741958,0.0357599,68481.0,68479.0,0.3608]
[1729423742155,0.0357599,68480.0,68479.0,0.3608]
[1729423742359,0.0357599,68488.0,68479.0,0.3608]
[1729423742555,0.08058286,68487.0,68479.0,0.3608]
[1729423742761,0.03576008,68486.0,68479.0,0.3608]
[1729423742961,0.03576008,68485.0,68479.0,0.3608]
[1729423743161,0.03576008,68484.0,68479.0,0.3608]
[1729423743367,0.03576008,68483.0,68479.0,0.3608]
[1729423743663,0.03576008,68482.0,68479.0,0.3608]
[1729423743862,0.03576008,68481.0,68479.0,0.3608]
[1729423744166,0.03576008,68480.0,68479.0,0.3608]
[1729423744969,0.03576018,68480.0,68479.0,0.3608]
[1729423745169,1.5,68489.0,68479.0,0.59485884]
[1729423745475,1.5,68489.0,68484.0,0.08757804]
[1729423745773,1.5,68489.0,68485.0,0.10678053]
[1729423745960,1.5,68489.0,68486.0,0.10678053]
[1729423746156,1.5,68489.0,68487.0,0.10678053]
[1729423746369,1.5,68489.0,68488.0,0.10678053]
[1729423747663,1.5,68489.0,68488.0,0.10680449]
[1729423752567,1.5,68489.0,68488.0,0.10682047]
[1729423753166,1.58058303,68489.0,68478.0,0.3608]
[1729423753372,0.08058303,68488.0,68478.0,0.3608]
[1729423753677,0.03576013,68487.0,68478.0,0.3608]
[1729423753878,0.03576013,68486.0,68478.0,0.3608]
[1729423754068,0.03576013,68485.0,68478.0,0.3608]
[1729423754270,1.5,68489.0,68474.0,0.0256948]
[1729423754271,0.03576013,68484.0,68474.0,0.0256948]
[1729423754469,0.03576013,68483.0,68479.0,0.3608]
[1729423754676,0.03576013,68482.0,68479.0,0.3608]
[1729423754878,0.03576013,68481.0,68479.0,0.3608]
[1729423755075,0.03576013,68480.0,68474.0,0.0256948]
[1729423755273,0.03576013,68479.0,68474.0,0.0256948]
[1729423755468,1.5,68489.0,68478.0,0.3608]
[1729423755666,0.0805834,68488.0,68478.0,0.3608]
[1729423755875,0.0805834,68487.0,68478.0,0.3608]
[1729423756063,0.0805834,68486.0,68479.0,0.3608]
[1729423756270,0.0357603,68485.0,68479.0,0.3608]
[1729423756573,0.0357603,68484.0,68479.0,0.3608]
[1729423756877,0.0357603,68483.0,68479.0,0.3608]
[1729423757179,0.0357603,68482.0,68479.0,0.3608]
[1729423757382,0.03576012,68481.0,68479.0,0.3608]
[1729423757569,0.03576012,68480.0,68479.0,0.3608]
[1729423757765,0.03576012,68488.0,68479.0,0.3608]
[1729423758079,0.08058316,68488.0,68479.0,0.3608]
[1729423759873,0.08058316,68488.0,68474.0,0.0256948]
[1729423760081,0.08058316,68488.0,68479.0,0.3608]
[1729423760278,0.08058316,68488.0,68474.0,0.0256948]
[1729423760279,1.5,68489.0,68484.0,0.08757804]
[1729423760484,1.5,68489.0,68485.0,0.10680156]
[1729423760670,1.5,68489.0,68486.0,0.10680156]
[1729423760982,1.5,68489.0,68487.0,0.10680156]
[1729423761177,1.5,68489.0,68488.0,0.10680156]
[1729423762284,1.5,68489.0,68488.0,0.10680726]
[1729423767181,1.5,68489.0,68488.0,0.10680858]
[1729423768382,1.58058326,68489.0,68479.0,0.3608]
[1729423768577,0.08058334,68488.0,68479.0,0.3608]
[1729423768786,1.5,68489.0,68479.0,0.3608]
[1729423768787,0.03576023,68487.0,68479.0,0.3608]
[1729423769085,0.03576023,68486.0,68474.0,0.0256948]
[1729423769286,0.03576023,68485.0,68474.0,0.0256948]
[1729423769483,0.03576023,68484.0,68474.0,0.0256948]
[1729423769683,1.5,68489.0,68478.0,0.3608]
[1729423769684,0.03576023,68483.0,68478.0,0.3608]
[1729423769999,0.03576023,68482.0,68478.0,0.3608]
[1729423770287,0.03576023,68481.0,68478.0,0.3608]
[1729423770512,1.5,68489.0,68474.0,0.0256948]
[1729423770685,0.03576048,68488.0,68478.0,0.3608]
[1729423770890,0.03576048,68487.0,68478.0,0.3608]
[1729423771083,0.03576048,68486.0,68478.0,0.3608]
[1729423771388,1.5,68489.0,68478.0,0.3608]
[1729423771389,0.03576048,68485.0,68478.0,0.3608]
[1729423771589,0.03576048,68484.0,68474.0,0.0256948]
[1729423771789,0.03576048,68483.0,68478.0,0.3608]
[1729423771987,0.03576048,68482.0,68478.0,0.3608]
[1729423772180,1.5,68489.0,68474.0,0.0256948]
[1729423772381,1.5,68489.0,68478.0,0.3608]
[1729423772382,0.03576048,68488.0,68478.0,0.3608]
[1729423772582,0.03576048,68487.0,68478.0,0.3608]
[1729423772884,0.03576048,68486.0,68478.0,0.3608]
[1729423773080,0.03576048,68485.0,68478.0,0.3608]
[1729423773288,0.03576048,68484.0,68474.0,0.0256948]
[1729423773494,0.03576048,68483.0,68478.0,0.3608]
[1729423773788,0.03576048,68482.0,68478.0,0.3608]
[1729423773991,0.03576048,68481.0,68478.0,0.3608]
[1729423774193,1.5,68489.0,68474.0,0.0256948]
[1729423774394,0.03576053,68488.0,68474.0,0.0256948]
[1729423774596,0.03576053,68487.0,68474.0,0.0256948]
[1729423774800,0.03576053,68486.0,68478.0,0.3608]
[1729423774998,0.03576053,68485.0,68478.0,0.3608]
[1729423775199,1.5,68489.0,68478.0,0.3608]
[1729423775200,0.03576053,68484.0,68478.0,0.3608]
[1729423775398,1.5,68489.0,68481.0,0.10218913]
[1729423775588,1.5,68489.0,68482.0,0.23413237]
[1729423775789,1.5,68489.0,68483.0,0.23413237]
[1729423776099,1.5,68489.0,68481.0,0.10218913]
[1729423776100,1.5,68489.0,68484.0,0.23413237]
[1729423776291,1.5,68489.0,68485.0,0.23413237]
[1729423776485,1.5,68489.0,68481.0,0.10218913]
[1729423776486,1.5,68489.0,68486.0,0.23413237]
[1729423776687,1.5,68489.0,68487.0,0.23413237]
[1729423776896,1.5,68489.0,68488.0,0.23413237]
[1729423777096,1.5,68489.0,68488.0,0.23413709]
[1729423782103,1.5,68489.0,68488.0,0.23415857]
[1729423783399,1.5,68489.0,68488.0,0.04377786]
[1729423785794,1.5,68489.0,68487.0,0.04377786]
[1729423786106,1.5,68489.0,68486.0,0.04377786]
[1729423787091,1.5,68489.0,68485.0,0.04377786]
[1729423787698,0.3608,68490.0,68485.0,0.04377786]
[1729423790199,0.3608,68490.0,68482.0,0.0583701]
[1729423790200,0.3608,68490.0,68486.0,0.04377786]
[1729423790401,0.0805849,68489.0,68477.0,0.3922]
[1729423790700,0.0805849,68488.0,68477.0,0.3922]
[1729423790900,0.0805849,68487.0,68477.0,0.3922]
[1729423791206,0.0805849,68486.0,68477.0,0.3922]
[1729423791407,0.0805849,68485.0,68477.0,0.3922]
[1729423791606,0.0805849,68484.0,68477.0,0.3922]
[1729423791806,0.0805849,68483.0,68477.0,0.3922]
[1729423792009,0.08058539,68482.0,68477.0,0.3922]
[1729423792205,0.08058539,68481.0,68477.0,0.3922]
[1729423792410,0.08058539,68480.0,68477.0,0.3922]
[1729423792712,0.08058539,68479.0,68477.0,0.3922]
[1729423792914,0.08058539,68478.0,68477.0,0.3922]
[1729423798312,0.02573581,68478.0,68477.0,0.49902954]
[1729423798513,0.3608,68490.0,68477.0,0.49902954]
[1729423798709,0.3608,68490.0,68487.0,0.05836383]
[1729423803120,0.38690268,68490.0,68479.0,0.07295479]
[1729423803422,0.3608,68482.0,68478.0,0.07295479]
[1729423803607,0.031,68481.0,68477.0,0.43375479]
[1729423803807,0.031,68481.0,68477.0,0.3608]
[1729423805416,0.0805921,68480.0,68477.0,0.3608]
[1729423805721,0.0805921,68479.0,68477.0,0.3608]
[1729423805913,0.0805921,68478.0,68477.0,0.3608]
[1729423806821,0.0805921,68478.0,68473.0,0.0628]
[1729423807017,0.0805921,68477.0,68473.0,0.0628]
[1729423807218,0.0805921,68476.0,68473.0,0.0628]
[1729423807516,0.0805921,68475.0,68473.0,0.0628]
[1729423807719,0.0805921,68474.0,68473.0,0.0628]
[1729423808034,0.03576416,68474.0,68473.0,0.0628]
[1729423808221,0.0805921,68480.0,68473.0,0.0628]
[1729423808418,0.0805921,68479.0,68473.0,0.0628]
[1729423808621,0.0805921,68478.0,68473.0,0.0628]
[1729423808822,0.0805921,68477.0,68473.0,0.0628]
[1729423809023,0.0805921,68476.0,68473.0,0.0628]
[1729423809214,0.0805921,68475.0,68473.0,0.0628]
[1729423809413,0.0805921,68474.0,68473.0,0.0628]
[1729423809615,0.0805921,68480.0,68473.0,0.0628]
[1729423809913,0.05782021,68481.0,68473.0,0.0628]
[1729423809914,0.3608,68478.0,68473.0,0.0628]
[1729423810116,0.08059531,68477.0,68473.0,0.0628]
[1729423810317,0.08059531,68476.0,68473.0,0.0628]
[1729423810527,0.08059531,68475.0,68473.0,0.0628]
[1729423810726,0.08059531,68474.0,68473.0,0.0628]
[1729423812310,0.03576558,68474.0,68473.0,0.0628]
[1729423812509,0.08059531,68474.0,68473.0,0.0628]
[1729423813125,0.08059531,68474.0,68473.0,0.031]
[1729423813314,0.03576558,68474.0,68473.0,0.031]
[1729423813510,0.3608,68478.0,68473.0,0.13714405]
[1729423813817,0.3608,68478.0,68475.0,0.07288214]
[1729423821824,0.3608,68478.0,68474.0,0.07288214]
[1729423822019,0.3608,68478.0,68473.0,0.07288214]
[1729423824619,0.05782021,68481.0,68473.0,0.07288214]
[1729423824819,0.3608,68478.0,68473.0,0.07288214]
[1729423826731,0.05782021,68481.0,68473.0,0.07288214]
[1729423826923,0.3608,68478.0,68473.0,0.07288214]
[1729423827922,0.05782021,68481.0,68473.0,0.07288214]
[1729423828118,0.05782021,68481.0,68474.0,0.07288214]
[1729423828119,0.3608,68478.0,68474.0,0.07288214]
[1729423828324,0.05782021,68481.0,68474.0,0.07288214]
[1729423828519,0.3608,68478.0,68470.0,0.018]
[1729423828743,0.08059648,68477.0,68470.0,0.018]
[1729423829126,0.0357661,68476.0,68470.0,0.018]
[1729423829327,0.0357661,68475.0,68470.0,0.018]
[1729423829527,0.0357661,68474.0,68470.0,0.018]
[1729423829830,0.0357661,68473.0,68470.0,0.018]
[1729423830032,0.0357661,68472.0,68470.0,0.018]
[1729423830227,0.0357661,68471.0,68470.0,0.018]
[1729423830434,0.3608,68478.0,68470.0,0.018]
[1729423830630,0.03576593,68477.0,68470.0,0.018]
[1729423830933,0.03576593,68476.0,68470.0,0.018]
[1729423831134,0.03576593,68475.0,68470.0,0.018]
[1729423831333,0.03576593,68474.0,68470.0,0.018]
[1729423831641,0.03576593,68473.0,68470.0,0.018]
[1729423831938,0.3608,68478.0,68470.0,0.018]
[1729423831939,0.03576593,68472.0,68470.0,0.018]
[1729423832138,0.03576593,68471.0,68470.0,0.018]
[1729423835539,0.3608,68479.0,68470.0,0.12451015]
[1729423835836,0.3608,68479.0,68476.0,0.07296853]
[1729423837541,0.3608,68477.0,68476.0,0.07296853]
[1729423837738,0.3608,68477.0,68476.0,0.17954932]
[1729423838438,0.05782021,68481.0,68476.0,0.17954932]
[1729423838639,0.3608,68477.0,68476.0,0.07296853]
[1729423838841,0.3608,68477.0,68476.0,0.17955549]
[1729423840844,0.05782021,68481.0,68476.0,0.17955549]
[1729423841147,0.05782021,68481.0,68476.0,0.07296853]
[1729423841344,0.3608,68477.0,68476.0,0.07296853]
[1729423841542,0.05782021,68481.0,68476.0,0.17957515]
[1729423841840,0.05782021,68481.0,68476.0,0.07296853]
[1729423842246,0.3608,68477.0,68476.0,0.07296853]
[1729423842444,0.05782021,68481.0,68476.0,0.17957539]
[1729423842748,0.3608,68477.0,68476.0,0.07296853]
[1729423842937,0.05782021,68481.0,68476.0,0.17957477]
[1729423843139,0.3608,68477.0,68476.0,0.07296853]
[1729423843340,0.3608,68477.0,68476.0,0.17957549]
[1729423843542,0.08059702,68477.0,68470.0,0.018]
[1729423843733,0.44139702,68476.0,68470.0,0.018]
[1729423844040,0.08059702,68475.0,68470.0,0.018]
[1729423844240,0.3608,68476.0,68470.0,0.018]
[1729423844241,0.08059702,68474.0,68470.0,0.018]
[1729423844440,0.08059702,68473.0,68470.0,0.018]
[1729423844649,0.08059702,68472.0,68470.0,0.018]
[1729423844942,0.03576634,68471.0,68470.0,0.018]
[1729423847747,0.3608,68476.0,68470.0,0.018]
[1729423847950,0.02593878,68476.0,68470.0,0.018]
[1729423848149,0.3608,68476.0,68470.0,0.018]
[1729423848551,0.031,68481.0,68470.0,0.018]
[1729423848854,0.03576672,68475.0,68470.0,0.018]
[1729423849445,0.08059787,68475.0,68470.0,0.018]